fUST/lending_fUST_20250210
["ID","MTS","AMOUNT","RATE_DAILY","PERIOD"]
[352591063,1739183447392,-500.0,0.00012328,2]
[352591064,1739183447401,-548.85,0.00012328,2]
[352591065,1739183447411,-500.0,0.00012328,2]
[352591066,1739183447421,-500.0,0.00012328,2]
[352591067,1739183447431,-500.0,0.00012328,2]
[352591068,1739183447441,-670.43,0.00012328,2]
[352591069,1739183447451,-790.95,0.00012328,2]
[352591070,1739183447462,-1726.25,0.00012328,2]
[352591071,1739183447472,-1320.67,0.00012328,2]
[352591072,1739183447480,-729.49,0.00012328,2]
[352591073,1739183447490,-6699.27,0.00012328,2]
[352591074,1739183447500,-500.0,0.00012328,2]
[352591075,1739183447510,-500.0,0.00012328,2]
[352591076,1739183447522,-715.06,0.00012328,2]
[352591077,1739183447532,-2549.28,0.00012328,2]
[352591078,1739183447542,-1334.43,0.00012328,2]
[352591079,1739183447553,-942.26,0.00012328,2]
[352591080,1739183447564,-151.0,0.000124,2]
[352591081,1739183447574,-151.0,0.00012465,2]
[352591082,1739183447585,-500.0,0.00012465,2]
[352591083,1739183447595,-500.0,0.00012465,2]
[352591084,1739183447605,-500.0,0.00012465,2]
[352591085,1739183447615,-500.0,0.00012465,2]
[352591086,1739183447627,-500.0,0.00012465,2]
[352591087,1739183447638,-576.05,0.00012465,2]
[352591088,1739183447648,-500.0,0.00012465,2]
[352591089,1739183447659,-500.0,0.00012465,2]
[352591090,1739183447668,-500.0,0.00012465,2]
[352591091,1739183447790,-577.61,0.00012465,2]
[352591092,1739183447801,-302.03,0.00012465,2]
[352591093,1739183447811,-5933.52,0.00012465,2]
[352591094,1739183447821,-500.0,0.00012465,2]
[352591095,1739183447831,-1007.69,0.00012465,2]
[352591096,1739183447843,-625.72,0.00012465,2]
[352591097,1739183447852,-500.0,0.00012465,2]
[352591098,1739183447862,-16378.88,0.00012465,2]
[352591099,1739183447873,-176.96261095,0.00012465,2]
[352591100,1739183447976,-323.03738905,0.00012465,2]
[352591101,1739183447986,-173.04624142,0.00012465,2]
[352591102,1739183448051,-504.7154657,0.00010958,2]
[352591103,1739183448062,-326.95375858,0.00012465,2]
[352591104,1739183448072,-710.75,0.00012465,2]
[352591105,1739183448082,-898.49,0.00012465,2]
[352591106,1739183448093,-500.0,0.00012465,2]
[352591107,1739183448102,-500.0,0.00012465,2]
[352591108,1739183448112,-531.21,0.00012465,2]
[352591109,1739183448123,-642.35,0.00012465,2]
[352591110,1739183448133,-1310.53,0.00012465,2]
[352591111,1739183448145,-2762.6,0.00012465,2]
[352591112,1739183448156,-500.0,0.00012465,2]
[352591113,1739183448167,-651.34,0.00012465,2]
[352591114,1739183448177,-608.29795405,0.00012465,2]
[352591115,1739183448191,-744.74204595,0.00012465,2]
[352591116,1739183448201,-318.87183239,0.00012465,2]
[352591117,1739183448328,-500.0,0.00010957,2]
[352591118,1739183448339,-500.0,0.00010958,2]
[352591119,1739183448349,-555.51,0.00011095,2]
[352591120,1739183448360,-667.66816761,0.00012465,2]
[352591121,1739183448370,-223.19683239,0.00012465,2]
[352591122,1739183448388,-421.11316761,0.00012465,2]
[352591123,1739183448399,-8.07262871,0.00012465,2]
[352591124,1739183448411,-370.6,0.00012465,2]
[352591126,1739184274517,1000.0,0.00016,120]
[352591127,1739184331127,-900.0,0.0001061,2]
[352591128,1739184433088,-1295.35747058,0.00010504,2]
[352591129,1739184433109,-2784.13346768,0.0001061,2]
[352591130,1739184442084,-107.64364877,0.0001061,2]
[352591131,1739184442107,-284.07569116,0.00010617,2]
[352591132,1739184442128,-400.0,0.00010685,2]
[352591133,1739184442151,-1979.97663592,0.00010826,2]
[352591134,1739184442173,-6581.9277004,0.00010902,2]
[352591135,1739184444135,-856.76983238,0.00010902,2]
[352591136,1739184444158,-300.0,0.00010905,2]
[352591137,1739184444180,-500.0,0.00010957,2]
[352591138,1739184444202,-500.0,0.00010957,2]
[352591139,1739184444228,-502.68019379,0.00010957,2]
[352591140,1739184444249,-500.0,0.00010958,2]
[352591141,1739184444271,-500.0,0.00010958,2]
[352591142,1739184444292,-500.0,0.00010958,2]
[352591143,1739184444312,-500.0,0.00010958,2]
[352591144,1739184444332,-500.0,0.00010958,2]
[352591145,1739184444355,-500.0,0.00010958,2]
[352591146,1739184444375,-500.0,0.00010958,2]
[352591147,1739184444395,-500.0,0.00010958,2]
[352591148,1739184444416,-500.0,0.00010958,2]
[352591149,1739184444436,-500.0,0.00010958,2]
[352591150,1739184444456,-500.0,0.00010958,2]
[352591151,1739184444476,-500.0,0.00010958,2]
[352591152,1739184444496,-500.0,0.00010958,2]
[352591153,1739184444517,-500.0,0.00010958,2]
[352591154,1739184444538,-500.0,0.00010958,2]
[352591155,1739184444558,-500.0,0.00010958,2]
[352591156,1739184444578,-500.0,0.00010958,2]
[352591157,1739184444600,-500.0,0.00010958,2]
[352591158,1739184444620,-186.98479699,0.00010958,2]
[352591159,1739184451084,-313.01520301,0.00010958,2]
[352591160,1739184451105,-136.98479699,0.00010958,2]
[352591196,1739184638396,-300.0,0.00010089,2]
[352591198,1739184638406,-11230.4298539,0.0001009,2]
[352591200,1739184638416,-500.0,0.00010957,2]
[352591202,1739184638425,-384.19655715,0.00010957,2]
[352591204,1739184638434,-279.24608152,0.00010957,2]
[352591206,1739184638444,-500.0,0.00010958,2]
[352591208,1739184638454,-441.5567632,0.00010958,2]
[352591210,1739184638463,-500.0,0.00010958,2]
[352591212,1739184638473,-505.40138683,0.00010958,2]
[352591214,1739184638482,-503.29889513,0.00010958,2]
[352591216,1739184638491,-509.44014121,0.00010958,2]
[352591218,1739184638500,-500.0,0.00010958,2]
[352591220,1739184638510,-500.0,0.00010958,2]
[352591223,1739184638519,-500.0,0.00010958,2]
[352591225,1739184638528,-500.0,0.00010958,2]
[352591227,1739184638537,-508.66649537,0.00010958,2]
[352591229,1739184638546,-500.0,0.00010958,2]
[352591231,1739184638555,-500.0,0.00010958,2]
[352591233,1739184638565,-500.0,0.00010958,2]
[352591235,1739184638574,-500.0,0.00010958,2]
[352591237,1739184638583,-500.0,0.00010958,2]
[352591239,1739184638592,-500.0,0.00010958,2]
[352591241,1739184638601,-500.0,0.00010958,2]
[352591243,1739184638610,-500.0,0.00010958,2]
[352591245,1739184638619,-505.49035837,0.00010958,2]
[352591246,1739184638629,-500.0,0.00010958,2]
[352591247,1739184638638,-500.0,0.00010958,2]
[352591248,1739184638647,-500.0,0.00010958,2]
[352591249,1739184638657,-500.0,0.00010958,2]
[352591250,1739184638666,-506.50061272,0.00010958,2]
[352591251,1739184638675,-501.80219771,0.00010958,2]
[352591252,1739184638685,-500.0,0.00010958,2]
[352591253,1739184638694,-345.55891214,0.00010958,2]
[352591254,1739184638704,-500.0,0.00010958,2]
[352591255,1739184638713,-633.46109756,0.00010958,2]
[352591256,1739184638723,-500.0,0.00010958,2]
[352591257,1739184638732,-500.0,0.00010958,2]
[352591258,1739184638741,-500.0,0.00010958,2]
[352591259,1739184638751,-500.0,0.00010958,2]
[352591260,1739184638760,-506.40964396,0.00010958,2]
[352591261,1739184638769,-504.71568762,0.00010958,2]
[352591262,1739184638778,-500.0,0.00010958,2]
[352591263,1739184638788,-500.0,0.00010958,2]
[352591264,1739184638797,-505.92911704,0.00010958,2]
[352591265,1739184638807,-504.44228573,0.00010958,2]
[352591266,1739184638816,-506.42217585,0.00010958,2]
[352591267,1739184638825,-500.0,0.00010958,2]
[352591268,1739184638834,-500.0,0.00010958,2]
[352591269,1739184638843,-500.0,0.00010958,2]
[352591270,1739184638852,-500.0,0.00010958,2]
[352591271,1739184638861,-500.0,0.00010958,2]
[352591272,1739184638870,-500.0,0.00010958,2]
[352591273,1739184638879,-500.0,0.00010958,2]
[352591274,1739184638889,-500.0,0.00010958,2]
[352591275,1739184638898,-500.0,0.00010958,2]
[352591276,1739184638907,-500.0,0.00010958,2]
[352591277,1739184638917,-500.0,0.00010958,2]
[352591278,1739184638926,-500.0,0.00010958,2]
[352591279,1739184638938,-500.0,0.00010958,2]
[352591280,1739184638951,-500.0,0.00010958,2]
[352591281,1739184638960,-500.0,0.00010958,2]
[352591282,1739184638969,-514.15886463,0.00010958,2]
[352591283,1739184638979,-500.0,0.00010958,2]
[352591284,1739184638988,-500.0,0.00010958,2]
[352591285,1739184638998,-500.0,0.00010958,2]
[352591286,1739184639007,-500.0,0.00010958,2]
[352591287,1739184639016,-500.0,0.00010958,2]
[352591288,1739184639025,-500.0,0.00010958,2]
[352591289,1739184639035,-897.47,0.00010958,2]
[352591290,1739184639043,-500.0,0.00010958,2]
[352591291,1739184639053,-500.0,0.00010958,2]
[352591292,1739184639062,-500.0,0.00010958,2]
[352591293,1739184639071,-500.0,0.00010958,2]
[352591294,1739184639080,-500.0,0.00010958,2]
[352591295,1739184639089,-500.0,0.00010958,2]
[352591296,1739184639099,-500.0,0.00010958,2]
[352591297,1739184639112,-500.0,0.00010958,2]
[352591298,1739184639122,-500.0,0.00010958,2]
[352591299,1739184639131,-500.0,0.00010958,2]
[352591300,1739184639140,-500.0,0.00010958,2]
[352591301,1739184639149,-500.0,0.00010958,2]
[352591302,1739184639159,-500.0,0.00010958,2]
[352591303,1739184639168,-500.0,0.00010958,2]
[352591304,1739184639177,-500.0,0.00010958,2]
[352591305,1739184639186,-500.0,0.00010958,2]
[352591306,1739184639195,-500.0,0.00010958,2]
[352591307,1739184639204,-500.0,0.00010958,2]
[352591308,1739184639212,-535.73,0.00010958,2]
[352591309,1739184639222,-500.0,0.00010958,2]
[352591310,1739184639230,-500.0,0.00010958,2]
[352591311,1739184639240,-500.0,0.00010958,2]
[352591312,1739184639249,-500.0,0.00010958,2]
[352591313,1739184639258,-500.0,0.00010958,2]
[352591314,1739184639266,-500.0,0.00010958,2]
[352591315,1739184639276,-500.0,0.00010958,2]
[352591316,1739184639285,-500.0,0.00010958,2]
[352591317,1739184639294,-489.87987051,0.00010958,2]
[352591318,1739184639303,-500.0,0.00010958,2]
[352591319,1739184639312,-500.0,0.00010958,2]
[352591320,1739184639321,-500.0,0.00010958,2]
[352591321,1739184639330,-500.0,0.00010958,2]
[352591322,1739184639340,-500.0,0.00010958,2]
[352591323,1739184639349,-645.58,0.00010958,2]
[352591324,1739184639358,-500.0,0.00010958,2]
[352591325,1739184639367,-500.0,0.00010958,2]
[352591326,1739184639377,-500.0,0.00010958,2]
[352591327,1739184639386,-500.0,0.00010958,2]
[352591328,1739184639395,-500.0,0.00010958,2]
[352591329,1739184639404,-500.0,0.00010958,2]
[352591330,1739184639413,-500.0,0.00010958,2]
[352591331,1739184639422,-500.0,0.00010958,2]
[352591332,1739184639432,-265.39628712,0.00010958,2]
[352591333,1739184639442,-500.0,0.00010958,2]
[352591334,1739184639451,-500.0,0.00010958,2]
[352591335,1739184639462,-500.0,0.00010958,2]
[352591336,1739184639471,-500.0,0.00010958,2]
[352591337,1739184639479,-500.0,0.00010958,2]
[352591338,1739184639488,-471.21177192,0.00010958,2]
[352591339,1739184639498,-500.0,0.00010958,2]
[352591340,1739184639507,-500.0,0.00010958,2]
[352591341,1739184639516,-528.76,0.00010958,2]
[352591342,1739184639525,-500.0,0.00010958,2]
[352591343,1739184639534,-500.0,0.00010958,2]
[352591344,1739184639543,-500.0,0.00010958,2]
[352591345,1739184639553,-500.0,0.00010958,2]
[352591346,1739184639562,-500.0,0.00010958,2]
[352591347,1739184639571,-500.0,0.00010958,2]
[352591348,1739184639580,-500.0,0.00010958,2]
[352591349,1739184639589,-500.0,0.00010958,2]
[352591350,1739184639598,-500.0,0.00010958,2]
[352591351,1739184639607,-500.0,0.00010958,2]
[352591352,1739184639616,-249.24,0.00010958,2]
[352591353,1739184639626,-500.0,0.00010958,2]
[352591354,1739184639635,-500.0,0.00010958,2]
[352591355,1739184639645,-500.0,0.00010958,2]
[352591356,1739184639654,-500.0,0.00010958,2]
[352591357,1739184639663,-500.0,0.00010958,2]
[352591358,1739184639672,-583.35,0.00010958,2]
[352591359,1739184639681,-500.0,0.00010958,2]
[352591360,1739184639690,-500.0,0.00010958,2]
[352591361,1739184639699,-500.0,0.00010958,2]
[352591362,1739184639708,-500.0,0.00010958,2]
[352591363,1739184639717,-500.0,0.00010958,2]
[352591364,1739184639726,-500.0,0.00010958,2]
[352591365,1739184639740,-352.4410277,0.00010958,2]
[352591366,1739184639749,-500.0,0.00010958,2]
[352591367,1739184639758,-500.0,0.00010958,2]
[352591368,1739184639767,-500.0,0.00010958,2]
[352591369,1739184639776,-537.99358364,0.00010958,2]
[352591370,1739184639786,-500.0,0.00010958,2]
[352591371,1739184639795,-500.0,0.00010958,2]
[352591372,1739184639806,-500.0,0.00010958,2]
[352591373,1739184639815,-500.0,0.00010958,2]
[352591374,1739184639824,-500.0,0.00010958,2]
[352591375,1739184639834,-500.0,0.00010958,2]
[352591376,1739184639843,-500.0,0.00010958,2]
[352591377,1739184639853,-500.0,0.00010958,2]
[352591378,1739184639862,-500.0,0.00010958,2]
[352591379,1739184639871,-726.45,0.00010958,2]
[352591381,1739184639881,-500.0,0.00010958,2]
[352591382,1739184639890,-341.08609439,0.00010958,2]
[352591383,1739184639899,-500.0,0.00010958,2]
[352591384,1739184639909,-176.41905318,0.00010958,2]
[352591385,1739184639918,-501.43391223,0.00010958,2]
[352591386,1739184639927,-500.0,0.00010958,2]
[352591387,1739184639939,-500.0,0.00010958,2]
[352591388,1739184639953,-220.90937093,0.00010958,2]
[352591389,1739184639962,-500.0,0.00010958,2]
[352591390,1739184639971,-500.0,0.00010958,2]
[352591391,1739184639981,-500.0,0.00010958,2]
[352591392,1739184639991,-500.0,0.00010958,2]
[352591393,1739184639999,-500.0,0.00010958,2]
[352591394,1739184640010,-500.0,0.00010958,2]
[352591395,1739184640019,-500.0,0.00010958,2]
[352591396,1739184640028,-500.0,0.00010958,2]
[352591397,1739184640037,-157.539,0.00010958,2]
[352591398,1739184640047,-500.0,0.00010958,2]
[352591399,1739184640056,-500.0,0.00010958,2]
[352591400,1739184640065,-500.0,0.00010958,2]
[352591401,1739184640074,-500.0,0.00010958,2]
[352591402,1739184640084,-500.0,0.00010958,2]
[352591403,1739184640093,-7025.82,0.00010958,2]
[352591404,1739184640102,-500.0,0.00010958,2]
[352591405,1739184640111,-502.3558219,0.00010958,2]
[352591407,1739184640120,-189.07791921,0.00010958,2]
[352591409,1739184640130,-500.0,0.00010958,2]
[352591411,1739184640139,-500.0,0.00010958,2]
[352591413,1739184640148,-500.0,0.00010958,2]
[352591414,1739184640158,-500.0,0.00010958,2]
[352591416,1739184640167,-751.32,0.00010958,2]
[352591418,1739184640177,-500.0,0.00010958,2]
[352591419,1739184640186,-500.0,0.00010958,2]
[352591420,1739184640195,-1185.47,0.00010958,2]
[352591421,1739184640209,-500.0,0.00010958,2]
[352591422,1739184640217,-500.0,0.00010958,2]
[352591423,1739184640227,-500.0,0.00010958,2]
[352591425,1739184640236,-2829.52,0.00010958,2]
[352591427,1739184640245,-500.0,0.00010958,2]
[352591429,1739184640254,-500.0,0.00010958,2]
[352591430,1739184640264,-500.0,0.00010958,2]
[352591431,1739184640273,-500.0,0.00010958,2]
[352591432,1739184640282,-500.0,0.00010958,2]
[352591433,1739184640291,-615.86,0.00010958,2]
[352591434,1739184640300,-500.0,0.00010958,2]
[352591435,1739184640309,-500.0,0.00010958,2]
[352591436,1739184640318,-500.0,0.00010958,2]
[352591437,1739184640327,-500.0,0.00010958,2]
[352591438,1739184640336,-1553.46,0.00010958,2]
[352591439,1739184640345,-500.0,0.00010958,2]
[352591440,1739184640354,-949.6,0.00010958,2]
[352591441,1739184640363,-1053.69,0.00010958,2]
[352591442,1739184640372,-500.0,0.00010958,2]
[352591443,1739184640381,-500.0,0.00010958,2]
[352591445,1739184640390,-720.36,0.00010958,2]
[352591447,1739184640398,-500.0,0.00010958,2]
[352591449,1739184640407,-500.0,0.00010958,2]
[352591451,1739184640416,-500.0,0.00010958,2]
[352591453,1739184640425,-500.0,0.00010958,2]
[352591455,1739184640434,-518.47,0.00010958,2]
[352591457,1739184640443,-7594.31,0.00010958,2]
[352591459,1739184640452,-1522.12,0.00010958,2]
[352591461,1739184640461,-500.0,0.00010958,2]
[352591463,1739184640470,-500.0,0.00010958,2]
[352591465,1739184640479,-500.0,0.00010958,2]
[352591466,1739184640489,-3200.14,0.00010958,2]
[352591469,1739184640499,-500.0,0.00010958,2]
[352591471,1739184640509,-500.0,0.00010958,2]
[352591473,1739184640518,-151.78966454,0.00010958,2]
[352591475,1739184640527,-514.01,0.00010958,2]
[352591477,1739184640536,-500.0,0.00010958,2]
[352591479,1739184640546,-500.0,0.00010958,2]
[352591480,1739184640555,-586.2,0.00010958,2]
[352591482,1739184640564,-500.0,0.00010958,2]
[352591485,1739184640573,-500.0,0.00010958,2]
[352591486,1739184640582,-500.0,0.00010958,2]
[352591488,1739184640591,-501.103816,0.00010958,2]
[352591490,1739184640602,-500.0,0.00010958,2]
[352591492,1739184640611,-500.0,0.00010958,2]
[352591494,1739184640619,-17335.31,0.00010958,2]
[352591496,1739184640629,-500.0,0.00010958,2]
[352591498,1739184640638,-500.0,0.00010958,2]
[352591500,1739184640647,-500.0,0.00010958,2]
[352591513,1739184640748,-841.1,0.00010958,2]
[352591515,1739184640759,-566.1,0.00010958,2]
[352591517,1739184640768,-500.0,0.00010958,2]
[352591519,1739184640777,-935.03,0.00010958,2]
[352591521,1739184640787,-511.84,0.00010958,2]
[352591523,1739184640796,-1576.8,0.00010958,2]
[352591525,1739184640805,-500.0,0.00010958,2]
[352591527,1739184640815,-500.0,0.00010958,2]
[352591529,1739184640825,-569.11,0.00010958,2]
[352591531,1739184640837,-1562.67,0.00010958,2]
[352591533,1739184640846,-500.0,0.00010958,2]
[352591535,1739184640857,-859.56,0.00010958,2]
[352591537,1739184640867,-290.38425263,0.00010958,2]
[352591539,1739184640876,-500.0,0.00010958,2]
[352591542,1739184640886,-500.0,0.00010958,2]
[352591544,1739184640895,-500.0,0.00010958,2]
[352591546,1739184640904,-683.35,0.00010958,2]
[352591548,1739184640912,-500.0,0.00010958,2]
[352591550,1739184640922,-500.0,0.00010958,2]
[352591551,1739184640931,-717.77,0.00010958,2]
[352591554,1739184640942,-500.0,0.00010958,2]
[352591556,1739184640953,-500.0,0.00010958,2]
[352591557,1739184640962,-500.0,0.00010958,2]
[352591560,1739184640972,-500.0,0.00010958,2]
[352591562,1739184640981,-500.0,0.00010958,2]
[352591564,1739184640990,-500.0,0.00010958,2]
[352591566,1739184640999,-500.0,0.00010958,2]
[352591568,1739184641008,-500.0,0.00010958,2]
[352591570,1739184641019,-690.64,0.00010958,2]
[352591572,1739184641028,-500.0,0.00010958,2]
[352591574,1739184641038,-250.33147456,0.00010958,2]
[352591576,1739184641047,-500.0,0.00010958,2]
[352591578,1739184641056,-500.0,0.00010958,2]
[352591580,1739184641065,-500.0,0.00010958,2]
[352591582,1739184641074,-577.85,0.00010958,2]
[352591584,1739184641084,-500.0,0.00010958,2]
[352591586,1739184641093,-500.0,0.00010958,2]
[352591588,1739184641102,-500.0,0.00010958,2]
[352591590,1739184641112,-500.0,0.00010958,2]
[352591592,1739184641121,-363.01520301,0.00010958,2]
[352591594,1739184641131,-929.02,0.00010958,2]
[352591596,1739184641141,-500.0,0.00010958,2]
[352591598,1739184641150,-500.0,0.00010958,2]
[352591600,1739184641161,-7438.69753278,0.00010958,2]
[352591602,1739184641170,-500.0,0.00010958,2]
[352591604,1739184641180,-500.0,0.00010958,2]
[352591606,1739184641190,-1341.29,0.00010958,2]
[352591608,1739184641199,-500.0,0.00010958,2]
[352591610,1739184641209,-1074.82,0.00010958,2]
[352591612,1739184641218,-500.0,0.00010958,2]
[352591614,1739184641228,-500.0,0.00010958,2]
[352591616,1739184641237,-500.0,0.00010958,2]
[352591618,1739184641246,-500.0,0.00010958,2]
[352591620,1739184641255,-500.0,0.00010958,2]
[352591622,1739184641265,-2801.78,0.00010958,2]
[352591624,1739184641274,-500.0,0.00010958,2]
[352591626,1739184641283,-500.0,0.00010958,2]
[352591628,1739184641293,-497.47264862,0.00010958,2]
[352591631,1739184641302,-500.0,0.00010958,2]
[352591633,1739184641311,-261.52265025,0.00010958,2]
[352591635,1739184641320,-333.12353233,0.00010958,2]
[352591637,1739184641329,-1015.98,0.00010958,2]
[352591639,1739184641339,-500.0,0.00010958,2]
[352591641,1739184641348,-313.97248694,0.00010958,2]
[352591643,1739184641357,-500.0,0.00010958,2]
[352591645,1739184641366,-500.0,0.00010958,2]
[352591647,1739184641375,-500.0,0.00010958,2]
[352591649,1739184641384,-500.0,0.00010958,2]
[352591651,1739184641393,-500.0,0.00010958,2]
[352591653,1739184641402,-500.0,0.00010958,2]
[352591655,1739184641411,-500.0,0.00010958,2]
[352591657,1739184641420,-500.0,0.00010958,2]
[352591659,1739184641429,-500.0,0.00010958,2]
[352591661,1739184641438,-500.0,0.00010958,2]
[352591663,1739184641447,-500.0,0.00010958,2]
[352591665,1739184641456,-500.0,0.00010958,2]
[352591667,1739184641465,-2296.21,0.00010958,2]
[352591669,1739184641474,-500.0,0.00010958,2]
[352591671,1739184641483,-500.63120117,0.00010958,2]
[352591673,1739184641492,-500.0,0.00010958,2]
[352591675,1739184641501,-500.0,0.00010958,2]
[352591677,1739184641510,-527.02674886,0.00010958,2]
[352591679,1739184641519,-585.82299965,0.00010958,2]
[352591681,1739184641528,-500.0,0.00010958,2]
[352591683,1739184641537,-500.0,0.00010958,2]
[352591685,1739184641546,-500.0,0.00010958,2]
[352591687,1739184641555,-500.0,0.00010958,2]
[352591689,1739184641564,-222.01950053,0.00010958,2]
[352591691,1739184641573,-501.2785299,0.00010958,2]
[352591693,1739184641583,-500.0,0.00010958,2]
[352591695,1739184641592,-559.01876113,0.00010958,2]
[352591697,1739184641601,-823.48,0.00010958,2]
[352591699,1739184641610,-206.41925426,0.00010958,2]
[352591701,1739184641618,-500.0,0.00010958,2]
[352591703,1739184641627,-500.0,0.00010958,2]
[352591705,1739184641636,-500.0,0.00010958,2]
[352591707,1739184641645,-240.91700773,0.00010995,2]
[352591709,1739184641654,-360.60598572,0.00011073,2]
[352591711,1739184641664,-500.0,0.00011073,2]
[352591713,1739184641673,-500.0,0.00011073,2]
[352591715,1739184641682,-500.0,0.00011073,2]
[352591717,1739184641691,-500.0,0.00011073,2]
[352591719,1739184641699,-500.0,0.00011073,2]
[352591721,1739184641708,-163.67726063,0.00011073,2]
[352591723,1739184641717,-161.97416736,0.00011073,2]
[352591724,1739184641726,-501.62037964,0.00011073,2]
[352591726,1739184641735,-500.0,0.00011073,2]
[352591728,1739184641745,-500.0,0.00011073,2]
[352591730,1739184641754,-301.44508107,0.00011093,2]
[352591732,1739184641763,-500.0,0.00011094,2]
[352591734,1739184641772,-569.49082942,0.00011094,2]
[352591735,1739184641781,-500.0,0.00011094,2]
[352591736,1739184641791,-307.89512205,0.00011094,2]
[352591737,1739184641800,-500.0,0.00011094,2]
[352591738,1739184641809,-500.0,0.00011094,2]
[352591739,1739184641818,-500.0,0.00011094,2]
[352591740,1739184641827,-500.0,0.00011094,2]
[352591741,1739184641836,-500.0,0.00011094,2]
[352591742,1739184641845,-510.10829942,0.00011095,2]
[352591743,1739184641854,-500.0,0.00011095,2]
[352591744,1739184641863,-500.0,0.00011095,2]
[352591745,1739184641872,-500.0,0.00011095,2]
[352591746,1739184641882,-500.0,0.00011095,2]
[352591747,1739184641891,-500.0,0.00011095,2]
[352591748,1739184641900,-897.47,0.00011095,2]
[352591749,1739184641909,-500.0,0.00011095,2]
[352591750,1739184641919,-500.0,0.00011095,2]
[352591751,1739184641928,-500.0,0.00011095,2]
[352591753,1739184641938,-500.0,0.00011095,2]
[352591755,1739184641951,-516.62,0.00011095,2]
[352591757,1739184641960,-500.0,0.00011095,2]
[352591759,1739184641969,-500.0,0.00011095,2]
[352591761,1739184641978,-500.0,0.00011095,2]
[352591763,1739184641987,-500.0,0.00011095,2]
[352591765,1739184641997,-500.0,0.00011095,2]
[352591767,1739184642006,-500.0,0.00011095,2]
[352591769,1739184642016,-500.0,0.00011095,2]
[352591771,1739184642026,-535.73,0.00011095,2]
[352591773,1739184642036,-500.0,0.00011095,2]
[352591775,1739184642045,-366.21379889,0.00011095,2]
[352591777,1739184642054,-500.0,0.00011095,2]
[352591779,1739184642063,-500.0,0.00011095,2]
[352591781,1739184642073,-500.0,0.00011095,2]
[352591783,1739184642082,-500.0,0.00011095,2]
[352591786,1739184642092,-500.0,0.00011095,2]
[352591787,1739184642100,-620.65,0.00011095,2]
[352591790,1739184642110,-645.58,0.00011095,2]
[352591791,1739184642121,-500.0,0.00011095,2]
[352591794,1739184642131,-500.0,0.00011095,2]
[352591796,1739184642141,-500.0,0.00011095,2]
[352591798,1739184642150,-500.0,0.00011095,2]
[352591800,1739184642159,-500.0,0.00011095,2]
[352591802,1739184642169,-500.0,0.00011095,2]
[352591804,1739184642179,-500.0,0.00011095,2]
[352591806,1739184642188,-500.0,0.00011095,2]
[352591808,1739184642198,-500.0,0.00011095,2]
[352591810,1739184642207,-528.76,0.00011095,2]
[352591812,1739184642216,-500.0,0.00011095,2]
[352591813,1739184642226,-500.0,0.00011095,2]
[352591814,1739184642235,-500.0,0.00011095,2]
[352591815,1739184642244,-500.0,0.00011095,2]